[Event "Late-Titled-Tuesday-Blitz-December-26-2023"]
[Site "Chess.com"]
[Date "2023.12.26"]
[Round "10"]
[White "Cambek64"]
[Black "SEBAZZANO"]
[Result "1/2-1/2"]
[WhiteElo "2412"]
[BlackElo "2272"]
[TimeControl "180+1"]
[EndTime "15:54:02 PST"]
[Termination "Game drawn by repetition"]

1. e4 {[%clk 0:02:59]} 1... e6 {[%clk 0:02:59.8]} 2. d3 {[%clk 0:02:57.8]} 2...
c5 {[%clk 0:02:59.6]} 3. f4 {[%clk 0:02:57.2]} 3... Nc6 {[%clk 0:03:00.1]} 4.
Nf3 {[%clk 0:02:57.6]} 4... g6 {[%clk 0:03:00.6]} 5. g3 {[%clk 0:02:57.7]} 5...
Bg7 {[%clk 0:03:01.1]} 6. Bg2 {[%clk 0:02:58.1]} 6... Nge7 {[%clk 0:03:01.6]} 7.
O-O {[%clk 0:02:58.6]} 7... O-O {[%clk 0:03:02]} 8. c4 {[%clk 0:02:58]} 8... d6
{[%clk 0:03:02.1]} 9. Nc3 {[%clk 0:02:57.8]} 9... b6 {[%clk 0:03:02]} 10. Be3
{[%clk 0:02:56.6]} 10... Bb7 {[%clk 0:03:02.4]} 11. d4 {[%clk 0:02:55.7]} 11...
cxd4 {[%clk 0:03:03.3]} 12. Nxd4 {[%clk 0:02:55.1]} 12... Rc8 {[%clk 0:03:01.1]}
13. b3 {[%clk 0:02:54.2]} 13... Nxd4 {[%clk 0:02:52.2]} 14. Bxd4 {[%clk
0:02:53.7]} 14... e5 {[%clk 0:02:52.2]} 15. fxe5 {[%clk 0:02:49.3]} 15... dxe5
{[%clk 0:02:52.9]} 16. Be3 {[%clk 0:02:49.5]} 16... Nc6 {[%clk 0:02:46]} 17. Nd5
{[%clk 0:02:47.4]} 17... Nd4 {[%clk 0:02:46]} 18. Bxd4 {[%clk 0:02:46.1]} 18...
exd4 {[%clk 0:02:45.6]} 19. Qd3 {[%clk 0:02:46.7]} 19... Bxd5 {[%clk 0:02:44.2]}
20. exd5 {[%clk 0:02:44.2]} 20... Qd6 {[%clk 0:02:39.7]} 21. Rae1 {[%clk
0:02:38.3]} 21... Rce8 {[%clk 0:02:35.3]} 22. Re4 {[%clk 0:02:28.2]} 22... f5
{[%clk 0:02:11.4]} 23. Re6 {[%clk 0:02:26.4]} 23... Rxe6 {[%clk 0:02:05.5]} 24.
dxe6 {[%clk 0:02:26.7]} 24... Bh6 {[%clk 0:02:05.7]} 25. Bd5 {[%clk 0:02:24.1]}
25... Kg7 {[%clk 0:02:02.6]} 26. Qxd4+ {[%clk 0:02:19.9]} 26... Rf6 {[%clk
0:02:02.6]} 27. Re1 {[%clk 0:02:14.8]} 27... Qe7 {[%clk 0:02:01]} 28. Kg2 {[%clk
0:02:11.6]} 28... f4 {[%clk 0:02:00.5]} 29. gxf4 {[%clk 0:02:09.7]} 29... Bxf4
{[%clk 0:01:59.1]} 30. Rf1 {[%clk 0:01:53.2]} 30... Bd6 {[%clk 0:01:39.9]} 31.
Rf3 {[%clk 0:01:30.3]} 31... Bc5 {[%clk 0:01:31.3]} 32. Qe5 {[%clk 0:01:26.3]}
32... Bd6 {[%clk 0:01:31]} 33. Qg5 {[%clk 0:01:26]} 33... Rxf3 {[%clk
0:01:27.9]} 34. Qxe7+ {[%clk 0:01:25.2]} 34... Bxe7 {[%clk 0:01:28.8]} 35. Kxf3
{[%clk 0:01:25.1]} 35... Kf6 {[%clk 0:01:29.2]} 36. Ke4 {[%clk 0:01:25.6]} 36...
Bd6 {[%clk 0:01:29.6]} 37. a4 {[%clk 0:01:22.9]} 37... a5 {[%clk 0:01:28.2]} 38.
h3 {[%clk 0:01:21.6]} 38... g5 {[%clk 0:01:27.6]} 39. Kf3 {[%clk 0:01:17.9]}
39... h5 {[%clk 0:01:20.7]} 40. Bc6 {[%clk 0:01:07.1]} 40... Kxe6 {[%clk
0:01:17.8]} 41. Be8 {[%clk 0:01:07.6]} 41... h4 {[%clk 0:01:17.1]} 42. Bh5
{[%clk 0:01:06.3]} 42... Bf4 {[%clk 0:01:13.7]} 43. Ke4 {[%clk 0:01:06]} 43...
Kd6 {[%clk 0:01:14]} 44. Kd4 {[%clk 0:01:05.7]} 44... Kc7 {[%clk 0:01:13.8]} 45.
c5 {[%clk 0:01:04.2]} 45... bxc5+ {[%clk 0:01:07.9]} 46. Kxc5 {[%clk 0:01:04.4]}
46... Bd2 {[%clk 0:01:08.4]} 47. Kb5 {[%clk 0:01:02.7]} 47... Kb7 {[%clk
0:01:04.6]} 48. Bg4 {[%clk 0:01:02.3]} 48... Ka7 {[%clk 0:01:04.5]} 49. Bf3
{[%clk 0:01:02.1]} 49... Be1 {[%clk 0:01:04.3]} 50. Kc6 {[%clk 0:00:59.5]} 50...
Bd2 {[%clk 0:01:04.4]} 51. Kc7 {[%clk 0:00:58]} 51... Bf4+ {[%clk 0:01:03.6]}
52. Kc6 {[%clk 0:00:57]} 52... Bd2 {[%clk 0:01:04.2]} 53. Be4 {[%clk 0:00:55.6]}
53... Be1 {[%clk 0:01:01.6]} 54. Kd5 {[%clk 0:00:53.9]} 54... Kb6 {[%clk
0:01:00.4]} 55. Bd3 {[%clk 0:00:52.9]} 55... Bd2 {[%clk 0:00:59]} 56. Ke4 {[%clk
0:00:51.2]} 56... Bc1 {[%clk 0:00:58.6]} 57. Bc4 {[%clk 0:00:51.1]} 57... Bd2
{[%clk 0:00:58.4]} 58. Kf5 {[%clk 0:00:51]} 58... Bc1 {[%clk 0:00:58.3]} 59. Kg4
{[%clk 0:00:51.3]} 59... Bd2 {[%clk 0:00:58.2]} 60. Be6 {[%clk 0:00:49.7]} 60...
Bc1 {[%clk 0:00:58.2]} 61. Kf3 {[%clk 0:00:49.5]} 61... Kc5 {[%clk 0:00:57.9]}
62. Ke4 {[%clk 0:00:49]} 62... Kb4 {[%clk 0:00:57.9]} 63. Kd3 {[%clk 0:00:49]}
63... Bf4 {[%clk 0:00:58.2]} 64. Kd4 {[%clk 0:00:47.4]} 64... Bc1 {[%clk
0:00:58.1]} 65. Kd5 {[%clk 0:00:47.2]} 65... Bf4 {[%clk 0:00:58.3]} 66. Kc6
{[%clk 0:00:46.3]} 66... Bc1 {[%clk 0:00:58.2]} 67. Kb6 {[%clk 0:00:46]} 67...
Be3+ {[%clk 0:00:58.1]} 68. Kc6 {[%clk 0:00:45]} 68... Bc1 {[%clk 0:00:58.1]}
69. Kd5 {[%clk 0:00:44]} 69... Bf4 {[%clk 0:00:57.8]} 70. Ke4 {[%clk 0:00:41.5]}
70... Bc1 {[%clk 0:00:57.5]} 71. Kf5 {[%clk 0:00:41.4]} 71... Be3 {[%clk
0:00:56.7]} 72. Kg4 {[%clk 0:00:41.9]} 72... Bc1 {[%clk 0:00:56.7]} 73. Bf7
{[%clk 0:00:42.3]} 73... Bd2 {[%clk 0:00:56.6]} 74. Bg8 {[%clk 0:00:43]} 74...
Bc1 {[%clk 0:00:56.6]} 75. Bf7 {[%clk 0:00:43.7]} 75... Bd2 {[%clk 0:00:56.9]}
76. Bg8 {[%clk 0:00:44.4]} 76... Bc1 {[%clk 0:00:57.3]} 77. Bf7 {[%clk
0:00:44.9]} 1/2-1/2

[Event "Late-Titled-Tuesday-Blitz-December-26-2023"]
[Site "Chess.com"]
[Date "2023.12.26"]
[Round "10"]
[White "HalfIsCrayfish"]
[Black "sofaceindisguise"]
[Result "1-0"]
[WhiteElo "2634"]
[BlackElo "2722"]
[TimeControl "180+1"]
[EndTime "15:54:18 PST"]
[Termination "HalfIsCrayfish won by resignation"]

1. d4 {[%clk 0:02:54]} 1... Nf6 {[%clk 0:02:51.7]} 2. c4 {[%clk 0:02:54.4]} 2...
e6 {[%clk 0:02:51.8]} 3. Nc3 {[%clk 0:02:54.1]} 3... Bb4 {[%clk 0:02:50.9]} 4.
Qc2 {[%clk 0:02:52.7]} 4... O-O {[%clk 0:02:44.2]} 5. a3 {[%clk 0:02:53]} 5...
Bxc3+ {[%clk 0:02:43.1]} 6. Qxc3 {[%clk 0:02:53.9]} 6... b6 {[%clk 0:02:42.4]}
7. Bg5 {[%clk 0:02:54]} 7... Bb7 {[%clk 0:02:38.2]} 8. f3 {[%clk 0:02:51.9]}
8... h6 {[%clk 0:02:36.5]} 9. Bh4 {[%clk 0:02:49.2]} 9... d5 {[%clk 0:02:35.1]}
10. e3 {[%clk 0:02:45]} 10... Nbd7 {[%clk 0:02:31.4]} 11. cxd5 {[%clk
0:02:44.8]} 11... Nxd5 {[%clk 0:02:13.2]} 12. Bxd8 {[%clk 0:02:44.3]} 12... Nxc3
{[%clk 0:02:13.1]} 13. bxc3 {[%clk 0:02:38.9]} 13... Rfxd8 {[%clk 0:02:12.4]}
14. Bb5 {[%clk 0:02:31.9]} 14... c6 {[%clk 0:02:07.6]} 15. Ba4 {[%clk
0:02:24.3]} 15... e5 {[%clk 0:01:58]} 16. Ne2 {[%clk 0:02:22.1]} 16... b5 {[%clk
0:01:58]} 17. Bc2 {[%clk 0:02:19.1]} 17... c5 {[%clk 0:01:57.9]} 18. Kf2 {[%clk
0:02:13.7]} 18... exd4 {[%clk 0:01:56.4]} 19. exd4 {[%clk 0:02:11.6]} 19... Bd5
{[%clk 0:01:51.4]} 20. Rhd1 {[%clk 0:02:05.7]} 20... Bc4 {[%clk 0:01:49.2]} 21.
Ng3 {[%clk 0:01:53.3]} 21... cxd4 {[%clk 0:01:48.1]} 22. Rxd4 {[%clk 0:01:50.9]}
22... Nb6 {[%clk 0:01:43.3]} 23. Nf5 {[%clk 0:01:38.3]} 23... Rxd4 {[%clk
0:01:39.2]} 24. Nxd4 {[%clk 0:01:39.2]} 24... Nd5 {[%clk 0:01:36.4]} 25. Be4
{[%clk 0:01:37.4]} 25... Rd8 {[%clk 0:01:31.9]} 26. Nc6 {[%clk 0:01:36]} 26...
Rd7 {[%clk 0:01:20.7]} 27. Rd1 {[%clk 0:01:33.3]} 27... Kf8 {[%clk 0:01:12.3]}
28. Ne5 {[%clk 0:01:29.3]} 28... Re7 {[%clk 0:01:06.7]} 29. Nxc4 {[%clk
0:01:28.6]} 29... Nxc3 {[%clk 0:00:59.8]} 30. Rd8+ {[%clk 0:01:28.8]} 30... Re8
{[%clk 0:00:59.1]} 31. Rxe8+ {[%clk 0:01:29.1]} 31... Kxe8 {[%clk 0:01:00]} 32.
Nd2 {[%clk 0:01:18.1]} 32... a5 {[%clk 0:00:57.2]} 33. Ke3 {[%clk 0:01:10.5]}
33... Ke7 {[%clk 0:00:56.7]} 34. Kd4 {[%clk 0:01:07.6]} 34... b4 {[%clk
0:00:56.4]} 35. axb4 {[%clk 0:01:06]} 35... axb4 {[%clk 0:00:57.3]} 36. Kc4
{[%clk 0:01:04.9]} 36... Nd1 {[%clk 0:00:42.9]} 37. Kxb4 {[%clk 0:00:59.5]}
37... Ne3 {[%clk 0:00:42.2]} 38. g3 {[%clk 0:00:58.6]} 38... f5 {[%clk
0:00:42.1]} 39. Ba8 {[%clk 0:00:55.7]} 39... Kf6 {[%clk 0:00:40.4]} 40. Kc3
{[%clk 0:00:54.2]} 40... g5 {[%clk 0:00:40.5]} 41. Kd3 {[%clk 0:00:54.5]} 41...
Nd1 {[%clk 0:00:36]} 42. Ke2 {[%clk 0:00:49.8]} 42... Nc3+ {[%clk 0:00:35.9]}
43. Kf2 {[%clk 0:00:47.5]} 43... Nb5 {[%clk 0:00:35.6]} 44. Bd5 {[%clk
0:00:40.2]} 44... Nc7 {[%clk 0:00:35.3]} 45. Bc4 {[%clk 0:00:40.1]} 45... Ne8
{[%clk 0:00:35.1]} 46. g4 {[%clk 0:00:38.7]} 46... Nd6 {[%clk 0:00:33.7]} 47.
Bd3 {[%clk 0:00:38.3]} 47... fxg4 {[%clk 0:00:32.6]} 48. Ne4+ {[%clk 0:00:32.7]}
48... Nxe4+ {[%clk 0:00:32.6]} 49. fxe4 {[%clk 0:00:33.1]} 49... h5 {[%clk
0:00:29.6]} 50. Ke3 {[%clk 0:00:28.2]} 50... Ke5 {[%clk 0:00:29.8]} 51. Be2
{[%clk 0:00:26]} 51... Kf6 {[%clk 0:00:23.5]} 52. Kd4 {[%clk 0:00:26.1]} 52...
Ke6 {[%clk 0:00:23.5]} 53. Bd1 {[%clk 0:00:24]} 53... Kf6 {[%clk 0:00:21.9]} 54.
Kd5 {[%clk 0:00:24]} 54... Kg6 {[%clk 0:00:13]} 55. e5 {[%clk 0:00:22.8]} 55...
Kf7 {[%clk 0:00:13.1]} 56. Kd6 {[%clk 0:00:22.8]} 56... Ke8 {[%clk 0:00:10.6]}
57. e6 {[%clk 0:00:23.1]} 57... g3 {[%clk 0:00:06.3]} 58. Ba4+ {[%clk
0:00:22.5]} 58... Kf8 {[%clk 0:00:06.2]} 59. e7+ {[%clk 0:00:23.3]} 59... Kg7
{[%clk 0:00:07.1]} 60. hxg3 {[%clk 0:00:22.4]} 1-0

[Event "Late-Titled-Tuesday-Blitz-December-26-2023"]
[Site "Chess.com"]
[Date "2023.12.26"]
[Round "10"]
[White "Ajedrez_con_German"]
[Black "Fore_Man"]
[Result "1-0"]
[WhiteElo "2575"]
[BlackElo "2383"]
[TimeControl "180+1"]
[EndTime "15:54:19 PST"]
[Termination "Ajedrez_con_German won by resignation"]

1. Nf3 {[%clk 0:02:58.8]} 1... Nf6 {[%clk 0:02:59.7]} 2. b3 {[%clk 0:02:59.4]}
2... d6 {[%clk 0:02:58.1]} 3. Bb2 {[%clk 0:03:00.3]} 3... e5 {[%clk 0:02:58.5]}
4. d3 {[%clk 0:03:00.6]} 4... Nbd7 {[%clk 0:02:57.8]} 5. c4 {[%clk 0:03:01.2]}
5... Be7 {[%clk 0:02:58.1]} 6. Nc3 {[%clk 0:03:01.7]} 6... O-O {[%clk
0:02:57.5]} 7. g3 {[%clk 0:03:02.4]} 7... Re8 {[%clk 0:02:57.7]} 8. Bg2 {[%clk
0:03:02.8]} 8... Nf8 {[%clk 0:02:58.5]} 9. O-O {[%clk 0:03:03.3]} 9... Ne6
{[%clk 0:02:59.1]} 10. d4 {[%clk 0:03:01.7]} 10... exd4 {[%clk 0:02:58.7]} 11.
Nxd4 {[%clk 0:03:02.6]} 11... Nxd4 {[%clk 0:02:59.6]} 12. Qxd4 {[%clk
0:03:02.6]} 12... Bf8 {[%clk 0:02:58]} 13. Rfe1 {[%clk 0:02:59.9]} 13... Qe7
{[%clk 0:02:56.3]} 14. Nd5 {[%clk 0:02:58.9]} 14... Nxd5 {[%clk 0:02:56.1]} 15.
cxd5 {[%clk 0:02:58.8]} 15... Bf5 {[%clk 0:02:48.9]} 16. Rac1 {[%clk 0:02:57.9]}
16... b6 {[%clk 0:02:39.8]} 17. e4 {[%clk 0:02:52.9]} 17... Bg6 {[%clk
0:02:39.7]} 18. Re3 {[%clk 0:02:51]} 18... Rac8 {[%clk 0:02:27.2]} 19. Bh3
{[%clk 0:02:31.8]} 19... Rb8 {[%clk 0:02:21.1]} 20. Qc4 {[%clk 0:02:07.3]} 20...
a5 {[%clk 0:02:13.3]} 21. Bd4 {[%clk 0:01:54.6]} 21... b5 {[%clk 0:01:49.7]} 22.
Qc2 {[%clk 0:01:41.1]} 22... Bxe4 {[%clk 0:01:34.6]} 23. Qe2 {[%clk 0:01:19.4]}
23... Qg5 {[%clk 0:01:28.1]} 24. Re1 {[%clk 0:01:16.9]} 24... Qh6 {[%clk
0:01:05.2]} 25. Bf1 {[%clk 0:01:01.8]} 25... c5 {[%clk 0:01:03.8]} 26. dxc6
{[%clk 0:01:00.6]} 26... d5 {[%clk 0:01:04]} 27. c7 {[%clk 0:00:48.8]} 27... Rb7
{[%clk 0:00:55]} 28. f3 {[%clk 0:00:46.1]} 28... Bb4 {[%clk 0:00:42.6]} 29. Rc1
{[%clk 0:00:38.4]} 29... f5 {[%clk 0:00:35.8]} 30. c8=Q {[%clk 0:00:36.5]} 30...
Rxc8 {[%clk 0:00:30.7]} 31. Rxc8+ {[%clk 0:00:37.4]} 31... Kf7 {[%clk
0:00:30.8]} 32. fxe4 {[%clk 0:00:37.9]} 32... dxe4 {[%clk 0:00:28.4]} 33. Qc2
{[%clk 0:00:29.8]} 33... Rd7 {[%clk 0:00:26.1]} 34. Rc7 {[%clk 0:00:28]} 34...
Qd6 {[%clk 0:00:24.7]} 35. Rxd7+ {[%clk 0:00:26.8]} 35... Qxd7 {[%clk
0:00:25.6]} 36. Qb2 {[%clk 0:00:14.9]} 36... Qd5 {[%clk 0:00:15.8]} 37. Re2
{[%clk 0:00:13.8]} 37... g5 {[%clk 0:00:14.3]} 38. Bg2 {[%clk 0:00:12.8]} 38...
Bd6 {[%clk 0:00:06.8]} 39. Qc3 {[%clk 0:00:09.9]} 39... b4 {[%clk 0:00:06.6]}
40. Qc4 {[%clk 0:00:10]} 40... Qxc4 {[%clk 0:00:06.5]} 41. bxc4 {[%clk
0:00:10.9]} 41... Ke6 {[%clk 0:00:07.3]} 42. Kf2 {[%clk 0:00:10.3]} 42... Bc7
{[%clk 0:00:06.9]} 43. Bxe4 {[%clk 0:00:10]} 43... fxe4 {[%clk 0:00:07.2]} 44.
Rxe4+ {[%clk 0:00:10.9]} 44... Kf5 {[%clk 0:00:07.2]} 45. Re7 {[%clk 0:00:10.1]}
45... Bd6 {[%clk 0:00:08.1]} 46. Rxh7 {[%clk 0:00:09.7]} 46... a4 {[%clk
0:00:09]} 47. Rb7 {[%clk 0:00:09.2]} 47... Ke4 {[%clk 0:00:07.8]} 48. Be3 {[%clk
0:00:08.6]} 48... Kd3 {[%clk 0:00:07.1]} 49. c5 {[%clk 0:00:07.9]} 49... Bf8
{[%clk 0:00:07.9]} 50. c6 {[%clk 0:00:08.1]} 50... Bd6 {[%clk 0:00:08.4]} 51. c7
{[%clk 0:00:08.4]} 51... Bxc7 {[%clk 0:00:09.1]} 52. Rxc7 {[%clk 0:00:09.3]}
52... b3 {[%clk 0:00:09.5]} 53. axb3 {[%clk 0:00:09.5]} 53... axb3 {[%clk
0:00:10.4]} 54. Bxg5 {[%clk 0:00:09.2]} 54... b2 {[%clk 0:00:10.3]} 55. Rb7
{[%clk 0:00:09.2]} 55... Kc2 {[%clk 0:00:11.2]} 56. Rxb2+ {[%clk 0:00:08.8]}
56... Kxb2 {[%clk 0:00:11.8]} 57. h4 {[%clk 0:00:08.9]} 57... Kc3 {[%clk
0:00:12.7]} 58. h5 {[%clk 0:00:09.5]} 58... Kd4 {[%clk 0:00:13.6]} 59. h6 {[%clk
0:00:10.3]} 59... Ke5 {[%clk 0:00:14.5]} 60. h7 {[%clk 0:00:10.9]} 60... Kf5
{[%clk 0:00:14.6]} 61. h8=Q {[%clk 0:00:10.5]} 61... Kxg5 {[%clk 0:00:15.5]} 62.
Qg7+ {[%clk 0:00:10.4]} 62... Kf5 {[%clk 0:00:15.7]} 1-0

[Event "Late-Titled-Tuesday-Blitz-December-26-2023"]
[Site "Chess.com"]
[Date "2023.12.26"]
[Round "10"]
[White "DCacheiro"]
[Black "OneTrickPony_82"]
[Result "0-1"]
[WhiteElo "2538"]
[BlackElo "2502"]
[TimeControl "180+1"]
[EndTime "15:54:21 PST"]
[Termination "OneTrickPony_82 won on time"]

1. e4 {[%clk 0:03:00.9]} 1... e5 {[%clk 0:02:59.9]} 2. Nf3 {[%clk 0:03:00.9]}
2... Nc6 {[%clk 0:03:00.5]} 3. Bb5 {[%clk 0:02:59.1]} 3... a6 {[%clk 0:03:00.6]}
4. Ba4 {[%clk 0:02:59.5]} 4... Nf6 {[%clk 0:03:00.7]} 5. O-O {[%clk 0:02:59.7]}
5... Be7 {[%clk 0:03:01]} 6. d3 {[%clk 0:03:00.1]} 6... b5 {[%clk 0:03:00.5]} 7.
Bb3 {[%clk 0:03:00.6]} 7... d6 {[%clk 0:03:01.1]} 8. c3 {[%clk 0:03:00.8]} 8...
O-O {[%clk 0:02:58.9]} 9. a4 {[%clk 0:02:59.8]} 9... Bd7 {[%clk 0:02:56.1]} 10.
Bc2 {[%clk 0:02:59.6]} 10... h6 {[%clk 0:02:47.5]} 11. h3 {[%clk 0:02:58.8]}
11... b4 {[%clk 0:02:45.2]} 12. Re1 {[%clk 0:02:57.9]} 12... Rb8 {[%clk
0:02:44.6]} 13. d4 {[%clk 0:02:51.5]} 13... exd4 {[%clk 0:02:37.5]} 14. cxd4
{[%clk 0:02:52.4]} 14... Na5 {[%clk 0:02:28.5]} 15. Nbd2 {[%clk 0:02:44.4]}
15... c5 {[%clk 0:02:21.3]} 16. dxc5 {[%clk 0:02:41.8]} 16... dxc5 {[%clk
0:02:20.2]} 17. e5 {[%clk 0:02:40.7]} 17... Nd5 {[%clk 0:02:16.8]} 18. Ne4
{[%clk 0:02:22.1]} 18... Be6 {[%clk 0:02:16.4]} 19. b3 {[%clk 0:02:04.6]} 19...
Nc3 {[%clk 0:02:02.5]} 20. Nxc3 {[%clk 0:01:17.9]} 20... bxc3 {[%clk 0:02:02.1]}
21. Qxd8 {[%clk 0:01:09.5]} 21... Rfxd8 {[%clk 0:02:01.1]} 22. Re3 {[%clk
0:00:53.5]} 22... Bxb3 {[%clk 0:01:31.8]} 23. Rxc3 {[%clk 0:00:48.5]} 23... Bxc2
{[%clk 0:01:30.9]} 24. Rxc2 {[%clk 0:00:49.4]} 24... Nb3 {[%clk 0:01:30]} 25.
Rb1 {[%clk 0:00:48]} 25... Nd4 {[%clk 0:01:12.5]} 26. Rxb8 {[%clk 0:00:46.7]}
26... Rxb8 {[%clk 0:01:09.7]} 27. Nxd4 {[%clk 0:00:46.1]} 27... cxd4 {[%clk
0:01:09.8]} 28. Rc7 {[%clk 0:00:36.4]} 28... Rb1 {[%clk 0:00:51.7]} 29. Rxe7
{[%clk 0:00:20.5]} 29... Rxc1+ {[%clk 0:00:51.3]} 30. Kh2 {[%clk 0:00:21.4]}
30... Ra1 {[%clk 0:00:44.5]} 31. Re8+ {[%clk 0:00:12.4]} 31... Kh7 {[%clk
0:00:43.9]} 32. e6 {[%clk 0:00:09.9]} 32... fxe6 {[%clk 0:00:42]} 33. Rxe6
{[%clk 0:00:10.8]} 33... Rxa4 {[%clk 0:00:41.7]} 34. Rd6 {[%clk 0:00:11.1]}
34... a5 {[%clk 0:00:36.2]} 35. Rd5 {[%clk 0:00:10.8]} 35... Kg6 {[%clk
0:00:31.6]} 36. Kg3 {[%clk 0:00:10.9]} 36... Kf6 {[%clk 0:00:31.7]} 37. Kf3
{[%clk 0:00:07.3]} 37... Ra3+ {[%clk 0:00:28.2]} 38. Ke4 {[%clk 0:00:05.7]}
38... d3 {[%clk 0:00:28.6]} 39. f4 {[%clk 0:00:03.4]} 39... Ke6 {[%clk
0:00:24.4]} 40. Rd8 {[%clk 0:00:02.3]} 40... a4 {[%clk 0:00:24]} 41. g4 {[%clk
0:00:01.7]} 41... g6 {[%clk 0:00:21.3]} 42. f5+ {[%clk 0:00:02]} 42... gxf5+
{[%clk 0:00:21.3]} 43. gxf5+ {[%clk 0:00:02.9]} 43... Kf6 {[%clk 0:00:21.7]} 44.
Rd6+ {[%clk 0:00:03.1]} 44... Kg5 {[%clk 0:00:18.4]} 45. Rg6+ {[%clk 0:00:03]}
45... Kh5 {[%clk 0:00:18.3]} 46. Rg8 {[%clk 0:00:02.2]} 46... d2 {[%clk
0:00:12.1]} 47. Rd8 {[%clk 0:00:02.7]} 47... Ra2 {[%clk 0:00:11.1]} 48. f6
{[%clk 0:00:02.5]} 48... Kg6 {[%clk 0:00:11.3]} 49. Ke5 {[%clk 0:00:03.1]} 49...
Ra1 {[%clk 0:00:06.2]} 50. Rxd2 {[%clk 0:00:01.8]} 50... Re1+ {[%clk 0:00:06.5]}
51. Kd5 {[%clk 0:00:02.2]} 51... Kxf6 {[%clk 0:00:06.5]} 52. Rf2+ {[%clk
0:00:02.1]} 52... Kg5 {[%clk 0:00:06]} 53. Rf3 {[%clk 0:00:01.3]} 53... Rb1
{[%clk 0:00:04.2]} 54. Ke4 {[%clk 0:00:01.1]} 54... Rb3 {[%clk 0:00:04]} 0-1

[Event "Late-Titled-Tuesday-Blitz-December-26-2023"]
[Site "Chess.com"]
[Date "2023.12.26"]
[Round "10"]
[White "KNVB"]
[Black "CFalcons8"]
[Result "1-0"]
[WhiteElo "2675"]
[BlackElo "2275"]
[TimeControl "180+1"]
[EndTime "15:54:24 PST"]
[Termination "KNVB won by resignation"]

1. e4 {[%clk 0:03:00.9]} 1... c5 {[%clk 0:02:55.2]} 2. Nf3 {[%clk 0:02:46.1]}
2... d6 {[%clk 0:02:53.4]} 3. c3 {[%clk 0:02:29.8]} 3... Nf6 {[%clk 0:02:51.2]}
4. Be2 {[%clk 0:02:30.4]} 4... e6 {[%clk 0:02:47.5]} 5. O-O {[%clk 0:02:30.4]}
5... Nc6 {[%clk 0:02:44.9]} 6. d3 {[%clk 0:02:17.5]} 6... Be7 {[%clk 0:02:43.5]}
7. Nbd2 {[%clk 0:02:18.4]} 7... O-O {[%clk 0:02:43]} 8. Re1 {[%clk 0:02:19.3]}
8... Rb8 {[%clk 0:02:42.4]} 9. a4 {[%clk 0:02:19.2]} 9... a6 {[%clk 0:02:42]}
10. Bf1 {[%clk 0:02:14.3]} 10... b5 {[%clk 0:02:41.5]} 11. axb5 {[%clk
0:02:15.2]} 11... axb5 {[%clk 0:02:41.9]} 12. d4 {[%clk 0:02:02.8]} 12... b4
{[%clk 0:02:39.1]} 13. dxc5 {[%clk 0:02:00.6]} 13... dxc5 {[%clk 0:02:40]} 14.
Qc2 {[%clk 0:01:57.1]} 14... e5 {[%clk 0:02:30.3]} 15. Nc4 {[%clk 0:01:52.7]}
15... Qc7 {[%clk 0:02:22.6]} 16. Ne3 {[%clk 0:01:44.7]} 16... bxc3 {[%clk
0:02:20.3]} 17. bxc3 {[%clk 0:01:44.4]} 17... Be6 {[%clk 0:02:20.8]} 18. Bc4
{[%clk 0:01:40.3]} 18... Bxc4 {[%clk 0:02:12.5]} 19. Nxc4 {[%clk 0:01:40.7]}
19... Ra8 {[%clk 0:02:12.7]} 20. Be3 {[%clk 0:01:24.7]} 20... Nd7 {[%clk
0:02:11.2]} 21. g3 {[%clk 0:01:12.2]} 21... Nb6 {[%clk 0:02:07.1]} 22. Nfd2
{[%clk 0:01:11.2]} 22... Nxc4 {[%clk 0:02:04.3]} 23. Nxc4 {[%clk 0:01:12.1]}
23... Na5 {[%clk 0:02:03.6]} 24. Qa2 {[%clk 0:01:01]} 24... Nxc4 {[%clk
0:01:55.6]} 25. Qxc4 {[%clk 0:01:01.3]} 25... Qc6 {[%clk 0:01:49.3]} 26. Red1
{[%clk 0:00:53.1]} 26... Rxa1 {[%clk 0:01:42.9]} 27. Rxa1 {[%clk 0:00:54]} 27...
Ra8 {[%clk 0:01:40.3]} 28. Rxa8+ {[%clk 0:00:08.9]} 28... Qxa8 {[%clk
0:01:41.2]} 29. Kg2 {[%clk 0:00:07.4]} 29... g6 {[%clk 0:01:35.3]} 30. Kf3
{[%clk 0:00:06.4]} 30... Qc6 {[%clk 0:01:34]} 31. h3 {[%clk 0:00:02.9]} 31...
Kg7 {[%clk 0:01:34.5]} 32. Qd3 {[%clk 0:00:02.2]} 32... f5 {[%clk 0:01:32.6]}
33. c4 {[%clk 0:00:01.3]} 33... h5 {[%clk 0:01:27.9]} 34. Qd5 {[%clk 0:00:01.3]}
34... Qxd5 {[%clk 0:01:22.9]} 35. cxd5 {[%clk 0:00:02.2]} 35... c4 {[%clk
0:01:20.9]} 36. Bd2 {[%clk 0:00:02.2]} 36... Kf6 {[%clk 0:01:16.8]} 37. Bc3
{[%clk 0:00:01.5]} 37... Bc5 {[%clk 0:01:16.1]} 38. g4 {[%clk 0:00:01.7]} 38...
hxg4+ {[%clk 0:01:15]} 39. hxg4 {[%clk 0:00:02.6]} 39... fxg4+ {[%clk
0:01:14.1]} 40. Kg3 {[%clk 0:00:03]} 40... Bd4 {[%clk 0:01:11.9]} 41. Bd2 {[%clk
0:00:03.4]} 41... c3 {[%clk 0:01:11.8]} 42. Bc1 {[%clk 0:00:03.7]} 42... Ke7
{[%clk 0:01:04.4]} 43. Kxg4 {[%clk 0:00:03.3]} 43... Bxf2 {[%clk 0:01:03.4]} 44.
Kf3 {[%clk 0:00:04]} 44... Bc5 {[%clk 0:00:55.9]} 45. Bg5+ {[%clk 0:00:03.2]}
45... Kd6 {[%clk 0:00:55.6]} 46. Ke2 {[%clk 0:00:04.1]} 46... Bd4 {[%clk
0:00:48.8]} 47. Kd3 {[%clk 0:00:04.4]} 47... Kc5 {[%clk 0:00:47.5]} 48. Be7+
{[%clk 0:00:03.2]} 48... Kb5 {[%clk 0:00:47.7]} 49. Bf6 {[%clk 0:00:01.6]} 49...
Kb6 {[%clk 0:00:31.4]} 50. Bg5 {[%clk 0:00:01.9]} 50... Kb5 {[%clk 0:00:28.6]}
51. Be7 {[%clk 0:00:02.1]} 51... Kb6 {[%clk 0:00:12.7]} 52. Bb4 {[%clk
0:00:02.4]} 52... Kc7 {[%clk 0:00:05.6]} 53. Bxc3 {[%clk 0:00:02.7]} 53... Bc5
{[%clk 0:00:03.8]} 54. Bxe5+ {[%clk 0:00:03]} 54... Kd7 {[%clk 0:00:04.5]} 55.
Bd4 {[%clk 0:00:03]} 55... Be7 {[%clk 0:00:04.2]} 56. e5 {[%clk 0:00:03.4]}
56... Bb4 {[%clk 0:00:03.9]} 57. Ke4 {[%clk 0:00:03.3]} 57... Be7 {[%clk
0:00:04.8]} 58. Be3 {[%clk 0:00:03.5]} 58... g5 {[%clk 0:00:04.1]} 59. Kf5
{[%clk 0:00:03.7]} 59... Kd8 {[%clk 0:00:03.7]} 60. Bxg5 {[%clk 0:00:04.2]}
60... Bxg5 {[%clk 0:00:03.5]} 61. Kxg5 {[%clk 0:00:05.1]} 1-0